bitfinex/quotes_SOLUSD_20241213
["timestamp","ask_amount","ask_price","bid_price","bid_amount"]
[1734054626161,12.96093064,225.91,225.84,20.0]
[1734054626471,12.96093064,225.88,225.84,20.0]
[1734054626645,12.96093064,225.88,225.8,12.96093064]
[1734054627249,12.96093064,225.86,225.79,20.0]
[1734054627449,0.25098,225.95,225.8,12.96093064]
[1734054627654,12.96093064,225.88,225.81,12.96093064]
[1734054628158,12.96093064,225.87,225.79,20.0]
[1734054628364,12.96093064,225.87,225.79,32.96093064]
[1734054629068,12.96093064,225.85,225.81,20.0]
[1734054629264,12.96093064,225.85,225.78,14.49793064]
[1734054629265,12.96093064,225.84,225.78,1.537]
[1734054630774,12.96093064,225.84,225.71,1.76707374]
[1734054630775,12.96093064,225.79,225.7,1.6147]
[1734054630951,12.96093064,225.83,225.63,8.1334]
[1734054630952,12.96093064,225.74,225.63,8.1334]
[1734054631157,12.96093064,225.74,225.65,12.96093064]
[1734054631379,12.96093064,225.76,225.67,12.96093064]
[1734054631549,0.12549,225.75,225.67,12.96093064]
[1734054631750,12.96093064,225.77,225.69,12.96093064]
[1734054631956,12.96093064,225.79,225.71,12.96093064]
[1734054632156,12.96093064,225.79,225.64,0.66461098]
[1734054632157,12.96093064,225.81,225.74,12.96093064]
[1734054632359,0.12549,225.81,225.75,12.96093064]
[1734054632569,13.08642064,225.81,225.74,12.96093064]
[1734054632765,0.12549,225.81,225.75,12.96093064]
[1734054632972,12.96093064,225.83,225.75,12.96093064]
[1734054633166,12.96093064,225.84,225.76,12.96093064]
[1734054634179,12.96093064,225.83,225.75,12.96093064]
[1734054635860,12.96093064,225.82,225.74,12.96093064]
[1734054638188,12.96093064,225.8,225.72,12.96093064]
[1734054638777,31.0681,225.88,225.69,11.0771]
[1734054638778,12.96093064,225.82,225.74,12.96093064]
[1734054641270,12.96093064,225.83,225.75,12.96093064]
[1734054641471,12.96093064,225.82,225.74,12.96093064]
[1734054642788,12.96093064,225.8,225.72,20.0]
[1734054642992,20.0,225.88,225.68,0.66432456]
[1734054642993,12.96093064,225.73,225.68,0.66432456]
[1734054643289,12.96093064,225.71,225.63,21.09433064]
[1734054643491,12.96093064,225.72,225.64,12.96093064]
[1734054643713,12.96093064,225.72,225.65,12.96093064]
[1734054643869,12.96093064,225.73,225.66,12.96093064]
[1734054644271,12.96093064,225.72,225.64,12.96093064]
[1734054644499,12.96093064,225.73,225.66,12.96093064]
[1734054644793,12.96093064,225.76,225.69,12.96093064]
[1734054645180,12.96093064,225.77,225.69,12.96093064]
[1734054645370,12.96093064,225.78,225.7,12.96093064]
[1734054646286,12.96093064,225.76,225.69,12.96093064]
[1734054646793,12.96093064,225.75,225.68,12.96093064]
[1734054646996,12.96093064,225.75,225.71,20.0]
[1734054647971,12.96093064,225.75,225.67,12.96093064]
[1734054648175,12.96093064,225.72,225.65,12.96093064]
[1734054648397,12.96093064,225.71,225.64,12.96093064]
[1734054648593,12.96093064,225.73,225.66,12.96093064]
[1734054648896,12.96093064,225.74,225.66,12.96093064]
[1734054649400,11.32238,225.81,225.68,12.96093064]
[1734054649401,12.96093064,225.76,225.68,12.96093064]
[1734054649586,12.96093064,225.77,225.69,12.96093064]
[1734054649780,12.96093064,225.75,225.68,32.96093064]
[1734054650100,12.96093064,225.76,225.69,12.96093064]
[1734054650594,12.96093064,225.75,225.68,32.96093064]
[1734054650777,12.96093064,225.76,225.69,12.96093064]
[1734054651569,12.96093064,225.79,225.72,12.96093064]
[1734054651773,12.96093064,225.8,225.72,12.96093064]
[1734054651976,6.3693,225.85,225.75,12.96093064]
[1734054652172,12.96093064,225.84,225.76,12.96093064]
[1734054652374,12.96093064,225.85,225.77,12.96093064]
[1734054654204,12.96093064,225.84,225.77,12.96093064]
[1734054654398,12.96093064,225.81,225.73,14.47873064]
[1734054656074,12.96093064,225.81,225.74,12.96093064]
[1734054656802,12.96093064,225.84,225.76,12.96093064]
[1734054656987,12.96093064,225.85,225.78,12.96093064]
[1734054657502,12.96093064,225.84,225.77,12.96093064]
[1734054658493,13.21191064,225.87,225.79,12.96093064]
[1734054658712,13.21191064,225.87,225.74,0.66435225]
[1734054658713,12.96093064,225.85,225.77,12.96093064]
[1734054660204,14.51783064,225.88,225.8,12.96093064]
[1734054660393,12.96093064,225.88,225.8,12.96093064]
[1734054661982,12.96093064,225.87,225.8,12.96093064]
[1734054662199,12.96093064,225.86,225.79,12.96093064]
[1734054662602,12.96093064,225.87,225.79,12.96093064]
[1734054662785,12.96093064,225.9,225.8,0.66412556]
[1734054662993,12.96093064,225.91,225.84,12.96093064]
[1734054663383,1.6253,225.93,225.8,0.66412556]
[1734054663384,12.96093064,225.92,225.85,12.96093064]
[1734054663594,12.96093064,225.91,225.84,12.96093064]
[1734054663986,12.96093064,225.88,225.81,32.96093064]
[1734054664379,12.96093064,225.88,225.81,20.0]
[1734054665213,13.08642064,225.89,225.82,12.96093064]
[1734054665405,12.96093064,225.88,225.81,12.96093064]
[1734054667417,12.96093064,225.88,225.78,0.66413735]
[1734054667418,12.96093064,225.85,225.78,0.66413735]
[1734054667610,12.96093064,225.83,225.75,12.96093064]
[1734054667793,12.96093064,225.83,225.76,12.96093064]
[1734054668199,12.96093064,225.84,225.76,12.96093064]
[1734054668627,13.08642064,225.81,225.74,12.96093064]
[1734054668920,12.96093064,225.82,225.75,12.96093064]
[1734054669687,12.96093064,225.84,225.77,12.96093064]
[1734054669924,12.96093064,225.85,225.78,12.96093064]
[1734054671016,12.96093064,225.84,225.76,12.96093064]
[1734054671608,12.96093064,225.81,225.74,12.96093064]
[1734054672398,12.96093064,225.8,225.73,12.96093064]
[1734054673518,12.96093064,225.79,225.72,20.0]
[1734054673694,12.96093064,225.81,225.73,12.96093064]
[1734054674791,12.96093064,225.75,225.68,14.55413064]
[1734054675009,12.96093064,225.74,225.68,1.5932]
[1734054675204,12.96093064,225.74,225.66,12.96093064]
[1734054675410,24.03113064,225.83,225.68,12.96093064]
[1734054675411,12.96093064,225.75,225.68,12.96093064]
[1734054676491,12.96093064,225.71,225.64,12.96093064]
[1734054676694,12.96093064,225.71,225.64,36.73781464]
[1734054676903,12.96093064,225.72,225.65,12.96093064]
[1734054677111,12.96093064,225.73,225.65,12.96093064]
[1734054677821,12.96093064,225.73,225.66,12.96093064]
[1734054678022,12.96093064,225.77,225.69,12.96093064]
[1734054678196,12.96093064,225.76,225.68,12.96093064]
[1734054679503,12.96093064,225.76,225.69,12.96093064]
[1734054679699,12.96093064,225.76,225.68,32.96093064]
[1734054679899,12.96093064,225.72,225.68,20.0]
[1734054680414,12.96093064,225.71,225.63,14.55413064]
[1734054681207,12.96093064,225.68,225.63,1.5932]
[1734054681622,12.96093064,225.69,225.63,1.5932]
[1734054681800,12.96093064,225.7,225.63,1.5932]
[1734054682319,13.08642064,225.69,225.62,12.96093064]
[1734054682515,0.12549,225.69,225.62,12.96093064]
[1734054683501,13.08642064,225.69,225.62,20.0]
[1734054683900,0.12549,225.69,225.62,32.96093064]
[1734054684210,12.96093064,225.68,225.62,20.0]
[1734054684600,13.08642064,225.69,225.62,32.96093064]
[1734054685902,12.96093064,225.73,225.66,12.96093064]
[1734054686099,12.96093064,225.74,225.67,12.96093064]
[1734054688068,12.96093064,225.75,225.68,12.96093064]
[1734054688603,13.08642064,225.75,225.68,12.96093064]
[1734054688802,12.96093064,225.74,225.67,32.96093064]
[1734054689133,12.96093064,225.74,225.67,20.0]
[1734054689712,12.96093064,225.74,225.67,32.96093064]
[1734054690718,12.96093064,225.75,225.68,12.96093064]
[1734054690927,12.96093064,225.78,225.7,12.96093064]
[1734054691930,12.96093064,225.78,225.73,20.0]
[1734054692128,12.96093064,225.77,225.73,20.0]
[1734054692337,12.96093064,225.76,225.73,20.0]
[1734054692842,12.96093064,225.76,225.72,20.0]
[1734054693012,12.96093064,225.73,225.67,0.66444458]
[1734054693329,12.96093064,225.7,225.63,12.96093064]
[1734054693914,12.96093064,225.68,225.61,1.5158]
[1734054695714,12.96093064,225.64,225.55,1.6213]
[1734054696036,12.96093064,225.62,225.55,14.58223064]
[1734054697234,12.96093064,225.61,225.55,1.6213]
[1734054697453,12.96093064,225.62,225.55,14.58223064]
[1734054700748,12.96093064,225.63,225.56,12.96093064]
[1734054700955,12.96093064,225.63,225.56,32.96093064]
[1734054701824,1.5546,225.7,225.58,12.96093064]
[1734054701825,12.96093064,225.64,225.58,12.96093064]
[1734054703367,12.96093064,225.65,225.59,12.96093064]
[1734054703536,12.96093064,225.66,225.59,12.96093064]
[1734054704350,12.96093064,225.65,225.59,12.96093064]
[1734054704749,12.96093064,225.67,225.6,12.96093064]
[1734054706253,12.96093064,225.66,225.59,12.96093064]
[1734054706653,12.96093064,225.64,225.57,0.66480004]
[1734054706859,12.96093064,225.63,225.55,14.58223064]
[1734054707077,12.96093064,225.61,225.55,1.6213]
[1734054707236,12.96093064,225.62,225.55,14.58223064]
[1734054708263,12.96093064,225.63,225.56,12.96093064]
[1734054708772,6.2462,225.63,225.51,0.5377913]
[1734054708932,6.2462,225.63,225.38,1.78751568]
[1734054708933,15.12549,225.51,225.38,1.78751568]
[1734054709132,15.12549,225.51,225.3,12.96093064]
[1734054709133,12.96093064,225.39,225.3,12.96093064]
[1734054709333,12.96093064,225.37,225.28,13.49872194]
[1734054709838,12.96093064,225.35,225.28,0.5377913]
[1734054710152,12.96093064,225.31,225.28,0.5377913]
[1734054710348,12.96093064,225.32,225.28,0.5377913]
[1734054710545,12.96093064,225.33,225.28,0.5377913]
[1734054710847,12.96093064,225.32,225.28,0.5377913]
[1734054711235,12.96093064,225.29,225.28,0.5377913]
[1734054711456,0.25098,225.38,225.28,0.5377913]
[1734054711654,12.96093064,225.31,225.28,0.5377913]
[1734054711851,12.96093064,225.32,225.28,0.5377913]
[1734054712243,12.96093064,225.31,225.28,0.5377913]
[1734054713678,12.96093064,225.29,225.28,0.5377913]
[1734054714094,13.08642064,225.29,225.28,0.5377913]
[1734054714470,13.21191064,225.29,225.28,0.5377913]
[1734054717896,26.17284128,225.29,225.28,0.5377913]
[1734054718762,56.17284128,225.29,225.28,0.5377913]
[1734054718978,79.94972528,225.29,225.28,0.5377913]
[1734054720194,24.027864,225.26,225.1,1.5118]
[1734054720363,12.96093064,225.16,225.1,1.5118]
[1734054721188,12.96093064,225.17,225.1,14.47273064]
[1734054722280,12.96093064,225.18,225.13,20.0]
[1734054722502,12.96093064,225.22,225.15,12.96093064]
[1734054722866,12.96093064,225.23,225.16,12.96093064]
[1734054723077,12.96093064,225.24,225.17,12.96093064]
[1734054723572,12.96093064,225.27,225.2,12.96093064]
[1734054723878,30.0,225.28,225.23,12.96093064]
[1734054724569,12.96093064,225.3,225.23,12.96093064]
[1734054724983,12.96093064,225.29,225.22,12.96093064]
[1734054725177,20.80640728,225.26,225.21,21.5756]
[1734054725357,20.80640728,225.23,225.21,20.0]
[1734054725759,20.80640728,225.24,225.21,20.0]
[1734054725970,20.80640728,225.24,225.2,20.0]
[1734054726589,20.80640728,225.25,225.2,20.0]
[1734054726775,20.80640728,225.26,225.2,20.0]
[1734054726965,20.80640728,225.25,225.2,20.0]
[1734054727365,20.80640728,225.25,225.21,20.0]
[1734054727968,20.80640728,225.26,225.21,20.0]
[1734054728166,0.25098,225.34,225.18,20.80640728]
[1734054728167,20.80640728,225.25,225.18,20.80640728]
[1734054728365,20.80640728,225.25,225.17,27.22550728]
[1734054728577,20.80640728,225.24,225.17,27.22550728]
[1734054729276,20.80640728,225.23,225.17,6.4191]
[1734054729490,20.80640728,225.24,225.17,27.22550728]
[1734054729801,0.12549,225.26,225.2,20.80640728]
[1734054729972,20.80640728,225.3,225.23,20.80640728]
[1734054730174,0.12549,225.29,225.23,20.80640728]
[1734054731071,20.80640728,225.28,225.22,20.0]
[1734054731271,20.80640728,225.28,225.23,20.0]
[1734054732571,20.80640728,225.28,225.2,40.80640728]
[1734054733285,20.93189728,225.29,225.21,20.80640728]
[1734054734099,20.80640728,225.31,225.23,20.80640728]
[1734054734279,20.80640728,225.32,225.25,20.80640728]
[1734054734481,17.754715,225.37,225.2,31.76680081]
[1734054734795,11.0891,225.45,225.2,31.76680081]
[1734054734796,20.80640728,225.39,225.31,20.80640728]
[1734054734984,20.80640728,225.39,225.32,20.80640728]
[1734054735591,20.80640728,225.38,225.31,20.80640728]
[1734054735885,20.80640728,225.41,225.34,20.80640728]
[1734054736207,20.80640728,225.43,225.36,20.80640728]
[1734054736412,20.80640728,225.42,225.35,20.80640728]
[1734054736708,20.80640728,225.44,225.37,20.80640728]
[1734054736907,20.80640728,225.44,225.29,11.0968]
[1734054736908,20.80640728,225.41,225.34,20.80640728]
[1734054737210,20.80640728,225.5,225.37,20.0]
[1734054737415,20.80640728,225.45,225.38,20.80640728]
[1734054737714,20.80640728,225.44,225.37,20.80640728]
[1734054738010,20.80640728,225.43,225.36,40.80640728]
[1734054738388,20.80640728,225.44,225.37,20.80640728]
[1734054738708,20.80640728,225.5,225.33,20.80640728]
[1734054738709,20.80640728,225.4,225.33,20.80640728]
[1734054738893,20.80640728,225.4,225.35,20.0]
[1734054739094,20.80640728,225.4,225.36,20.0]
[1734054739894,20.80640728,225.42,225.35,20.80640728]
[1734054740087,31.89320728,225.5,225.34,20.80640728]
[1734054740088,20.80640728,225.41,225.34,20.80640728]
[1734054740315,20.80640728,225.41,225.37,20.0]
[1734054741003,20.80640728,225.42,225.37,20.0]
[1734054741500,20.80640728,225.44,225.37,20.80640728]
[1734054741703,20.80640728,225.45,225.35,20.66540331]
[1734054741902,20.80640728,225.45,225.38,20.80640728]
[1734054742105,20.80640728,225.44,225.37,20.80640728]
[1734054742311,20.80640728,225.45,225.37,20.80640728]
[1734054742616,20.80640728,225.45,225.38,20.80640728]
[1734054742816,20.80640728,225.45,225.37,20.80640728]
[1734054742989,20.80640728,225.45,225.4,20.0]
[1734054743186,20.80640728,225.47,225.39,20.80640728]
[1734054743390,20.80640728,225.46,225.41,20.0]
[1734054743910,20.80640728,225.47,225.41,20.0]
[1734054744113,0.12549,225.47,225.4,20.80640728]
[1734054744411,20.80640728,225.48,225.41,20.80640728]
[1734054745229,0.12549,225.48,225.41,12.9792873]
[1734054745592,12.9792873,225.5,225.43,12.9792873]
[1734054745933,12.9792873,225.45,225.39,20.0]
[1734054746215,12.9792873,225.43,225.36,12.9792873]
[1734054746395,12.9792873,225.43,225.37,22.82]
[1734054746592,12.9792873,225.44,225.37,22.82]
[1734054746902,12.9792873,225.44,225.36,12.9792873]
[1734054747105,12.9792873,225.44,225.37,12.9792873]
[1734054747711,0.12549,225.44,225.37,12.9792873]
[1734054749014,0.12549,225.44,225.35,20.0]
[1734054749216,0.12549,225.44,225.39,20.0]
[1734054749897,12.9792873,225.45,225.38,12.9792873]
[1734054750807,0.25098,225.46,225.38,12.9792873]
[1734054752401,12.9792873,225.47,225.38,12.9792873]
[1734054753501,12.9792873,225.47,225.41,20.0]
[1734054755630,0.12549,225.47,225.41,20.0]
[1734054756922,0.12549,225.48,225.41,32.9792873]
[1734054757132,13.1047773,225.48,225.4,12.9792873]
[1734054757329,0.12549,225.48,225.41,12.9792873]
[1734054757620,0.12549,225.48,225.42,12.9792873]
[1734054758233,12.9792873,225.47,225.41,12.9792873]
[1734054759032,12.9792873,225.47,225.39,32.9792873]
[1734054760121,12.9792873,225.49,225.41,12.9792873]
[1734054762130,13.1047773,225.51,225.43,12.9792873]
[1734054762345,0.12549,225.5,225.43,12.9792873]
[1734054762510,12.9792873,225.54,225.47,12.9792873]
[1734054762708,28.81022253,225.55,225.48,12.9792873]
[1734054763006,15.83093523,225.55,225.48,12.9792873]
[1734054764116,15.83093523,225.55,225.43,3.37404181]
[1734054764117,12.9792873,225.54,225.47,12.9792873]
[1734054765228,0.12549,225.53,225.47,12.9792873]
[1734054765538,0.12549,225.54,225.48,12.9792873]
[1734054765717,13.1047773,225.54,225.47,20.0]
[1734054765926,13.1047773,225.54,225.47,12.9792873]
[1734054768512,13.1047773,225.54,225.48,12.9792873]
[1734054768714,0.12549,225.54,225.48,12.9792873]
[1734054770142,1.6612,225.57,225.49,12.9792873]
[1734054770337,13.2302673,225.56,225.49,12.9792873]
[1734054770517,12.9792873,225.58,225.51,12.9792873]
[1734054771540,12.9792873,225.59,225.52,12.9792873]
[1734054772043,0.12549,225.59,225.53,12.9792873]
[1734054772234,0.25098,225.59,225.53,12.9792873]
[1734054772428,0.12549,225.58,225.52,12.9792873]
[1734054772629,13.1047773,225.61,225.55,12.9792873]
[1734054772832,12.9792873,225.61,225.55,12.9792873]
[1734054773720,14.5320873,225.62,225.55,12.9792873]
[1734054774020,0.12549,225.61,225.55,12.9792873]
[1734054775032,0.12549,225.61,225.56,12.9792873]
[1734054775229,12.9792873,225.59,225.55,20.0]
[1734054775652,12.9792873,225.6,225.55,20.0]
[1734054775841,13.2302673,225.61,225.55,20.0]
[1734054776044,13.2302673,225.61,225.55,12.9792873]
[1734054776953,13.2302673,225.61,225.54,12.9792873]
[1734054777753,13.2302673,225.61,225.55,12.9792873]
[1734054777920,12.9792873,225.61,225.54,12.9792873]
[1734054778117,12.9792873,225.62,225.55,12.9792873]
[1734054779116,12.9792873,225.62,225.55,8.29673992]
[1734054779337,8.29673992,225.62,225.55,8.29673992]
[1734054779944,0.12549,225.63,225.55,8.29673992]
[1734054780146,8.42222992,225.63,225.56,8.29673992]
[1734054780525,8.29673992,225.64,225.57,8.29673992]
[1734054783133,8.29673992,225.62,225.54,0.66486029]
[1734054783353,8.29673992,225.61,225.54,32.07362392]
[1734054785063,8.29673992,225.6,225.52,20.0]
[1734054785352,8.29673992,225.57,225.44,11.75408672]
[1734054785537,8.29673992,225.56,225.49,8.29673992]
[1734054785938,8.29673992,225.57,225.5,8.29673992]
[1734054786144,0.12549,225.56,225.5,8.29673992]
[1734054786458,8.54771992,225.63,225.55,8.29673992]
[1734054786631,2.74150422,225.7,225.59,8.29673992]
[1734054786831,8.29673992,225.68,225.61,8.29673992]
[1734054787354,14.34603992,225.69,225.62,8.29673992]
[1734054787829,6.0493,225.69,225.63,8.29673992]
[1734054789049,0.12549,225.68,225.62,8.29673992]
[1734054789226,0.12549,225.68,225.62,32.95611682]
[1734054789728,0.12549,225.68,225.62,12.95611682]
[1734054789936,13.08160682,225.68,225.61,12.95611682]
[1734054790330,0.12549,225.68,225.62,12.95611682]
[1734054790660,6.0493,225.69,225.62,12.95611682]
[1734054790839,12.95611682,225.7,225.62,12.95611682]
[1734054791649,12.95611682,225.7,225.6,20.0]
[1734054791849,12.95611682,225.68,225.61,23.776884]
[1734054792034,12.95611682,225.68,225.61,36.73300082]
[1734054792229,12.95611682,225.69,225.62,12.95611682]
[1734054792757,12.95611682,225.7,225.62,12.95611682]
[1734054792941,0.12549,225.69,225.63,12.95611682]
[1734054793144,0.12549,225.7,225.65,12.95611682]
[1734054793556,14.54261682,225.72,225.65,12.95611682]
[1734054793736,1.5865,225.72,225.66,12.95611682]
[1734054793943,1.5865,225.72,225.67,12.95611682]
[1734054794139,1.5865,225.72,225.66,12.95611682]
[1734054794760,1.5865,225.72,225.64,20.0]
[1734054794940,14.54261682,225.72,225.65,12.95611682]
[1734054795336,1.5865,225.72,225.66,12.95611682]
[1734054796354,19.36341682,225.74,225.67,12.95611682]
[1734054796563,14.59751682,225.77,225.7,12.95611682]
[1734054797365,12.95611682,225.76,225.68,20.0]
[1734054797546,14.59751682,225.77,225.7,12.95611682]
[1734054797757,13.08160682,225.76,225.69,12.95611682]
[1734054797959,0.12549,225.76,225.7,12.95611682]
[1734054799247,0.12549,225.76,225.71,12.95611682]
[1734054801247,0.12549,225.76,225.68,32.95611682]
[1734054801248,0.25098,225.76,225.68,32.95611682]
[1734054801449,13.08160682,225.73,225.66,12.95611682]
[1734054801764,12.95611682,225.73,225.66,12.95611682]
[1734054802143,12.95611682,225.73,225.65,23.776884]
[1734054802144,0.25098,225.76,225.67,12.95611682]
[1734054802348,12.95611682,225.74,225.67,12.95611682]
[1734054802674,0.12549,225.74,225.68,12.95611682]
[1734054804573,11.0728,225.78,225.67,20.0]
[1734054804574,0.5377913,225.85,225.77,20.0]
[1734054804770,0.5377913,225.85,225.82,12.95611682]
[1734054806049,0.12549,225.84,225.82,12.95611682]
[1734054806761,0.5377913,225.85,225.82,12.95611682]
[1734054806964,0.5377913,225.85,225.84,12.95611682]
[1734054814466,0.5377913,225.85,225.84,37.39699205]
[1734054815867,0.5377913,225.85,225.84,12.95611682]
[1734054817669,0.5377913,225.85,225.83,12.95611682]
[1734054818579,0.5377913,225.85,225.79,0.6639568]
[1734054818760,0.12549,225.84,225.77,27.41]
[1734054818968,0.12549,225.84,225.78,12.95611682]
[1734054819161,0.25098,225.84,225.78,12.95611682]
[1734054826004,0.12549,225.84,225.8,12.95611682]
[1734054826177,0.5377913,225.85,225.82,12.95611682]
[1734054826385,0.5377913,225.85,225.84,12.95611682]
[1734054827369,0.5377913,225.85,225.84,8.27356147]
[1734054828909,0.5377913,225.85,225.84,32.05044547]
[1734054829076,0.5377913,225.85,225.84,32.7144073]
[1734054829280,0.5377913,225.85,225.84,37.36526043]
[1734054829703,0.5377913,225.85,225.84,24.44084583]
[1734054838807,0.5377913,225.85,225.84,37.36526043]
[1734054845415,11.0601,226.04,225.84,37.36526043]
[1734054845416,0.5377913,226.08,225.88,20.0]
[1734054845623,12.9244146,226.05,225.98,12.9244146]
[1734054846125,12.9244146,226.01,225.96,20.0]
[1734054846294,12.9244146,226.01,225.94,12.9244146]
[1734054846617,0.12549,226.0,225.94,12.9244146]
[1734054847120,0.25098,226.0,225.94,12.9244146]
[1734054847288,0.25098,226.01,225.94,12.9244146]
[1734054847493,13.1753946,226.01,225.94,12.9244146]
[1734054847919,12.9244146,226.0,225.92,32.9244146]
[1734054848098,0.25098,225.99,225.92,32.9244146]
[1734054849014,13.1753946,225.99,225.92,32.9244146]
[1734054850822,0.25098,225.99,225.93,12.9244146]
[1734054851330,0.25098,225.99,225.92,8.26889055]
[1734054851506,8.26889055,225.98,225.88,20.0]
[1734054851711,0.12549,225.97,225.91,8.26889055]
[1734054851914,0.25098,225.97,225.91,8.26889055]
[1734054853837,0.12549,225.98,225.91,8.26889055]
[1734054854219,0.12549,225.98,225.92,8.26889055]
[1734054854530,0.25098,225.99,225.95,8.26889055]
[1734054854920,0.25098,225.99,225.94,8.26889055]
[1734054855307,1.6398,226.05,225.97,8.26889055]
[1734054855617,8.26889055,226.04,225.97,8.26889055]
[1734054855820,8.26889055,226.03,225.96,8.26889055]
[1734054856216,8.26889055,226.04,225.97,8.26889055]
[1734054856406,8.26889055,226.03,225.96,8.26889055]
[1734054856611,8.26889055,226.04,225.97,8.26889055]
[1734054857024,0.25098,226.04,225.98,8.26889055]
[1734054857918,0.12549,226.04,225.99,8.26889055]
[1734054858710,1.6398,226.05,226.01,8.26889055]
[1734054859116,1.6398,226.05,226.0,8.26889055]
[1734054862027,1.6398,226.05,225.99,8.26889055]
[1734054862226,8.51987055,226.04,225.94,0.66366867]
[1734054862423,0.25098,226.04,225.97,8.26889055]
[1734054862637,8.51987055,226.04,225.97,8.26889055]
[1734054864116,0.25098,226.04,225.98,8.26889055]
[1734054864530,0.25098,226.04,225.93,0.66377417]
[1734054864727,8.51987055,226.04,225.96,8.26889055]
[1734054865627,8.26889055,226.03,225.96,8.26889055]
[1734054865829,0.25098,226.02,225.97,8.26889055]
[1734054866647,8.51987055,226.03,225.96,8.26889055]
[1734054867022,15.0,226.13,225.96,8.26889055]
[1734054867023,9.86120677,226.16,226.03,23.776884]
[1734054867239,16.34319055,226.2,226.07,8.26889055]
[1734054868730,8.0743,226.2,226.07,8.26889055]
[1734054869048,8.26889055,226.19,226.07,8.26889055]
[1734054871145,8.26889055,226.18,226.07,8.26889055]
[1734054873336,8.0743,226.2,226.07,8.26889055]
[1734054873524,16.34319055,226.2,226.07,8.26889055]
[1734054874644,8.0743,226.2,226.07,32.04577455]
[1734054875453,8.0743,226.2,226.07,60.42577455]
[1734054877659,16.34319055,226.2,226.07,60.42577455]
[1734054879632,8.0743,226.2,226.07,60.42577455]
[1734054879827,16.34319055,226.2,226.07,60.42577455]
[1734054881430,8.0743,226.2,226.07,60.42577455]
[1734054881635,0.12549,226.19,226.11,20.0]
[1734054881834,0.12549,226.19,226.16,8.26889055]
[1734054882136,8.0743,226.2,226.16,8.26889055]
[1734054882332,1.5549,226.2,226.17,8.26889055]
[1734054883624,0.25098,226.24,226.17,8.26889055]
[1734054883841,14.54179055,226.25,226.17,8.26889055]
[1734054884037,6.2729,226.25,226.19,8.26889055]
[1734054884545,6.2729,226.25,226.2,8.26889055]
[1734054886656,6.2729,226.25,226.21,8.26889055]
[1734054887531,0.12549,226.25,226.21,8.26889055]
[1734054887849,1.5751,226.26,226.21,8.26889055]
[1734054889154,8.51987055,226.25,226.17,20.0]
[1734054889453,0.25098,226.23,226.16,8.26889055]
[1734054889651,0.25098,226.23,226.17,8.26889055]
[1734054889966,0.25098,226.23,226.18,8.26889055]
[1734054890197,0.25098,226.24,226.18,8.26889055]
[1734054890453,0.25098,226.24,226.17,8.26889055]
[1734054890654,8.51987055,226.24,226.16,8.26889055]
[1734054890838,0.25098,226.24,226.18,8.26889055]
[1734054891860,0.25098,226.25,226.18,8.26889055]
[1734054892041,0.25098,226.25,226.19,8.26889055]
[1734054892551,8.51987055,226.25,226.17,8.26889055]
[1734054892859,8.51987055,226.25,226.16,20.0]
[1734054892860,8.51987055,226.25,226.18,8.26889055]
[1734054893852,1.5751,226.26,226.22,8.26889055]
[1734054894064,7.1213913,226.3,226.24,8.26889055]
[1734054894363,7.1213913,226.3,226.26,8.26889055]
[1734054894568,7.1213913,226.3,226.25,8.26889055]
[1734054895272,7.1213913,226.3,226.24,8.26889055]
[1734054895449,7.1213913,226.3,226.25,8.26889055]
[1734054896183,7.1213913,226.3,226.26,8.26889055]
[1734054896348,7.1213913,226.3,226.23,20.0]
[1734054896349,0.5377913,226.3,226.27,8.26889055]
[1734054896667,0.5377913,226.3,226.26,8.26889055]
[1734054897060,0.5377913,226.3,226.27,8.26889055]
[1734054898957,0.5377913,226.3,226.26,8.26889055]
[1734054900755,0.5377913,226.3,226.27,8.26889055]
[1734054903267,0.5377913,226.3,226.27,20.0]
[1734054903469,0.25098,226.29,226.22,8.26889055]
[1734054903961,0.25098,226.29,226.23,8.26889055]
[1734054904159,0.25098,226.29,226.24,8.26889055]
[1734054905254,0.25098,226.29,226.23,8.26889055]
[1734054906250,0.25098,226.29,226.24,8.26889055]
[1734054907278,0.25098,226.29,226.23,8.26889055]
[1734054907460,0.25098,226.29,226.24,8.26889055]
[1734054907655,0.25098,226.29,226.23,8.26889055]
[1734054909266,0.25098,226.29,226.24,8.26889055]
[1734054910479,0.25098,226.29,226.23,8.26889055]
[1734054911465,0.25098,226.29,226.24,8.26889055]
[1734054911777,0.25098,226.29,226.23,8.26889055]
[1734054912175,0.25098,226.29,226.21,20.0]
[1734054912360,0.25098,226.29,226.23,8.26889055]
[1734054914565,0.25098,226.29,226.21,20.0]
[1734054914566,0.5377913,226.3,226.25,8.26889055]
[1734054915367,0.25098,226.29,226.23,20.0]
[1734054915575,0.25098,226.29,226.24,8.26889055]
[1734054915781,0.25098,226.29,226.23,20.0]